fUSD/lending_fUSD_20240212
["ID","MTS","AMOUNT","RATE_DAILY","PERIOD"]
[313797338,1707727849694,-500.0,0.00022615,2]
[313797339,1707727849703,-500.0,0.00022615,2]
[313797340,1707727849712,-500.0,0.00022615,2]
[313797341,1707727849721,-500.0,0.00022615,2]
[313797342,1707727849730,-482.29287545,0.00022615,2]
[313797343,1707727849740,-500.0,0.00022615,2]
[313797344,1707727849749,-1008.89,0.00022615,2]
[313797345,1707727849758,-500.0,0.00022615,2]
[313797346,1707727849768,-1081.23,0.00022615,2]
[313797347,1707727849777,-500.0,0.00022615,2]
[313797348,1707727849786,-858.73,0.00022615,2]
[313797349,1707727849795,-500.0,0.00022615,2]
[313797350,1707727849805,-500.0,0.00022615,2]
[313797351,1707727849815,-500.0,0.00022615,2]
[313797352,1707727849825,-150.00635883,0.00022615,2]
[313797353,1707727849834,-1022.22,0.00022615,2]
[313797354,1707727849843,-500.0,0.00022615,2]
[313797355,1707727849853,-737.83,0.00022615,2]
[313797356,1707727849863,-500.0,0.00022615,2]
[313797357,1707727849872,-500.0,0.00022615,2]
[313797358,1707727849881,-968.51,0.00022615,2]
[313797359,1707727849891,-500.0,0.00022615,2]
[313797360,1707727849900,-500.0,0.00022615,2]
[313797361,1707727849910,-500.0,0.00022615,2]
[313797362,1707727849919,-500.0,0.00022615,2]
[313797363,1707727849928,-964.41,0.00022615,2]
[313797364,1707727849938,-513.78611641,0.00022615,2]
[313797365,1707727849947,-500.0,0.00022615,2]
[313797366,1707727849956,-500.0,0.00022615,2]
[313797367,1707727849966,-261.68832105,0.00022615,2]
[313797368,1707727849975,-500.0,0.00022615,2]
[313797369,1707727849985,-2210.49,0.00022615,2]
[313797370,1707727849994,-500.0,0.00022615,2]
[313797371,1707727850004,-1080.96,0.00022615,2]
[313797372,1707727850014,-500.0,0.00022615,2]
[313797373,1707727850023,-500.0,0.00022615,2]
[313797374,1707727850032,-500.0,0.00022615,2]
[313797375,1707727850041,-500.0,0.00022615,2]
[313797376,1707727850051,-500.0,0.00022615,2]
[313797377,1707727850060,-500.0,0.00022615,2]
[313797378,1707727850069,-616.21,0.00022615,2]
[313797379,1707727850079,-500.0,0.00022615,2]
[313797380,1707727850088,-1589.45,0.00022615,2]
[313797381,1707727850098,-500.0,0.00022615,2]
[313797382,1707727850108,-500.0,0.00022615,2]
[313797383,1707727850117,-500.0,0.00022615,2]
[313797384,1707727850127,-500.0,0.00022615,2]
[313797385,1707727850137,-500.0,0.00022615,2]
[313797386,1707727850146,-935.2,0.00022615,2]
[313797387,1707727850156,-500.0,0.00022615,2]
[313797388,1707727850165,-500.0,0.00022615,2]
[313797389,1707727850175,-508.85,0.00022615,2]
[313797390,1707727850186,-2506.31,0.00022615,2]
[313797391,1707727850196,-500.0,0.00022615,2]
[313797392,1707727850206,-500.0,0.00022615,2]
[313797393,1707727850215,-500.0,0.00022615,2]
[313797394,1707727850225,-500.0,0.00022615,2]
[313797395,1707727850235,-500.0,0.00022615,2]
[313797396,1707727850244,-500.0,0.00022615,2]
[313797397,1707727850254,-500.0,0.00022615,2]
[313797398,1707727850263,-500.0,0.00022615,2]
[313797399,1707727850273,-913.37,0.00022615,2]
[313797400,1707727850283,-500.0,0.00022615,2]
[313797401,1707727850292,-719.74,0.00022615,2]
[313797402,1707727850303,-576.68,0.00022615,2]
[313797403,1707727850313,-57.93826562,0.00022615,2]
[313797404,1707727850351,-442.06173438,0.00022615,2]
[313797405,1707727850361,-40.89245236,0.00022615,2]
[313797406,1707727850734,-459.10754764,0.00022615,2]
[313797407,1707727850744,-512.26307309,0.00022615,2]
[313797408,1707727850760,-451.09692691,0.00022615,2]
[313797409,1707727850769,-46.40307309,0.00022615,2]
[313797410,1707727850798,-453.59692691,0.00022615,2]
[313797411,1707727850808,-247.97307309,0.00022615,2]
[313797412,1707727850825,-252.02692691,0.00022615,2]
[313797413,1707727850835,-758.28,0.00022615,2]
[313797414,1707727850844,-565.69627387,0.00022615,2]
[313797415,1707727850855,-516.97,0.00022615,2]
[313797416,1707727850865,-500.0,0.00022615,2]
[313797417,1707727850874,-2813.66,0.00022615,2]
[313797418,1707727850884,-1405.58,0.00022615,2]
[313797419,1707727850893,-496.5925035,0.00022615,2]
[313797420,1707727869979,226.11664715,0.00022387,4]
[313797421,1707727870812,650.60910191,0.00022047,2]
[313797422,1707727906887,462.35,0.00021943,2]
[313797426,1707728155869,187.54,0.00021816,2]
[313797427,1707728277073,172.86,0.00019922,2]
[313797428,1707728277312,172.86,0.00022186,2]
[313797429,1707728334701,2000.0,0.00021828,2]
[313797430,1707728349493,630.12,0.00021828,2]
[313797488,1707728464207,150.94,0.00021948,2]
[313797495,1707728496922,273.3087,0.00021719,2]
[313797496,1707728496946,387.6287,0.00021719,2]
[313797497,1707728496970,1638.64039875,0.00021719,2]
[313797519,1707728655073,271.63,0.00021804,2]
[313797520,1707728729238,268.65,0.00021791,2]
[313797552,1707728811282,250.0,0.0002179,2]
[313797561,1707728917623,856.16,0.00021,5]
[313797574,1707728950310,495.9,0.00021786,2]
[313797582,1707728986277,198.17,0.00019871,2]
[313797583,1707728986480,198.17,0.00022135,2]
[313797596,1707729033136,158.29,0.00021946,2]
[313797598,1707729034358,-338.76210274,0.00022499,2]
[313797599,1707729034369,-1121.99377452,0.00022499,2]
[313797600,1707729034476,-789.91165546,0.00022499,2]
[313797601,1707729034486,-291.15664983,0.000225,2]
[313797602,1707729034496,-160.76552888,0.000225,2]
[313797603,1707729034506,-150.0,0.00022512,2]
[313797604,1707729034515,-300.0,0.00022512,2]
[313797605,1707729034525,-1506.85915679,0.00022513,2]
[313797606,1707729034537,-333.00815705,0.00022513,2]
[313797607,1707729034550,-368.24438616,0.00022513,2]
[313797608,1707729034559,-431.0523,0.00022513,2]
[313797609,1707729034569,-915.63285102,0.000226,2]
[313797611,1707729034706,-986.46397527,0.000226,2]
[313797613,1707729034719,-956.52804083,0.000226,2]
[313797616,1707729034736,-9607.56419272,0.000226,2]
[313797618,1707729034748,-1666.29869409,0.000226,2]
[313797620,1707729034766,-1259.03570238,0.000226,2]
[313797639,1707729039440,-3852.57876653,0.000226,2]
[313797640,1707729039450,-188.55456331,0.00022607,2]
[313797641,1707729039459,-1287.00949673,0.0002261,3]
[313797642,1707729039468,-48.25401019,0.00022611,2]
[313797643,1707729039658,-273.58141002,0.00022611,2]
[313797644,1707729039668,-155.4152334,0.00022611,2]
[313797645,1707729039677,-156.00479395,0.00022611,2]
[313797646,1707729039687,-424.82864697,0.00022611,2]
[313797647,1707729039730,-529.3914089,0.00022611,2]
[313797648,1707729039743,-527.26295481,0.00022611,2]
[313797649,1707729039753,-221.43112762,0.00022611,2]
[313797650,1707729039766,-481.080241,0.00022611,2]
[313797651,1707729039776,-915.99455481,0.00022611,2]
[313797652,1707729039788,-253.89399304,0.00022611,2]
[313797653,1707729039800,-977.46048853,0.00022611,2]
[313797654,1707729039813,-276.57178118,0.00022611,2]
[313797655,1707729039841,-167.29618247,0.00022611,2]
[313797656,1707729039852,-204.77506964,0.00022611,2]
[313797657,1707729039862,-389.21230668,0.00022611,2]
[313797658,1707729039872,-156.03034355,0.00022611,2]
[313797659,1707729039882,-995.22447845,0.00022611,2]
[313797660,1707729039893,-632.46168054,0.00022611,2]
[313797661,1707729039903,-10443.22553039,0.00022611,2]
[313797662,1707729039913,-156.14677915,0.00022611,2]
[313797663,1707729039923,-216.44378328,0.00022611,2]
[313797664,1707729039933,-279.94615861,0.00022611,2]
[313797665,1707729039943,-156.12080735,0.00022611,2]
[313797666,1707729039954,-264.86689415,0.00022611,2]
[313797667,1707729039964,-233.31131748,0.00022611,2]
[313797668,1707729039973,-294.25360057,0.00022611,2]
[313797669,1707729039982,-1064.43200738,0.00022611,2]
[313797670,1707729039991,-391.00097642,0.00022611,2]
[313797672,1707729040000,-156.75729693,0.00022611,2]
[313797674,1707729040010,-163.98940914,0.00022611,2]
[313797676,1707729040019,-158.34814295,0.00022611,2]
[313797678,1707729040029,-4670.40946995,0.00022612,2]
[313797680,1707729040038,-1129.10950891,0.00022612,3]
[313797681,1707729040047,-500.0,0.00022612,2]
[313797682,1707729040057,-500.0,0.00022612,2]
[313797683,1707729040066,-500.0,0.00022612,2]
[313797684,1707729040075,-500.0,0.00022612,2]
[313797685,1707729040085,-500.0,0.00022612,2]
[313797686,1707729040094,-500.0,0.00022612,2]
[313797687,1707729040103,-500.0,0.00022612,2]
[313797688,1707729040113,-577.11,0.00022612,2]
[313797689,1707729040122,-500.0,0.00022612,2]
[313797690,1707729040131,-522.40185531,0.00022612,2]
[313797691,1707729040140,-500.0,0.00022612,2]
[313797692,1707729040150,-500.0,0.00022612,2]
[313797693,1707729040163,-500.0,0.00022612,2]
[313797694,1707729040173,-500.0,0.00022612,2]
[313797695,1707729040183,-500.0,0.00022612,2]
[313797696,1707729040193,-500.0,0.00022612,2]
[313797697,1707729040203,-500.0,0.00022612,2]
[313797698,1707729040212,-500.0,0.00022612,2]
[313797699,1707729040222,-500.0,0.00022612,2]
[313797700,1707729040231,-500.0,0.00022612,2]
[313797701,1707729040241,-500.0,0.00022612,2]
[313797702,1707729040250,-500.0,0.00022612,2]
[313797703,1707729040260,-284.23099059,0.00022612,2]
[313797704,1707729040271,-500.0,0.00022612,2]
[313797705,1707729040280,-500.0,0.00022612,2]
[313797706,1707729040289,-500.0,0.00022612,2]
[313797707,1707729040299,-500.0,0.00022612,2]
[313797708,1707729040308,-500.0,0.00022612,2]
[313797709,1707729040317,-680.89,0.00022612,2]
[313797710,1707729040327,-19659.19,0.00022612,2]
[313797711,1707729040336,-500.0,0.00022612,2]
[313797712,1707729040346,-500.0,0.00022612,2]
[313797713,1707729040356,-501.25,0.00022612,2]
[313797714,1707729040366,-500.0,0.00022612,2]
[313797715,1707729040375,-518.8391532,0.00022612,2]
[313797716,1707729040385,-500.0,0.00022612,2]
[313797717,1707729040394,-500.0,0.00022612,2]
[313797718,1707729040404,-124.43019742,0.00022612,2]
[313797719,1707729040418,-419.6410628,0.00022612,2]
[313797721,1707729041383,-244.88873978,0.00022612,2]
[313797722,1707729041393,-500.0,0.00022612,2]
[313797723,1707729041403,-500.0,0.00022612,2]
[313797724,1707729041412,-500.0,0.00022612,2]
[313797725,1707729041422,-641.40633853,0.00022612,2]
[313797726,1707729041431,-500.0,0.00022612,2]
[313797727,1707729041440,-1899.18,0.00022612,2]
[313797728,1707729041450,-2409.51,0.00022612,2]
[313797729,1707729041459,-740.69,0.00022612,2]
[313797730,1707729041469,-500.0,0.00022612,2]
[313797731,1707729041478,-500.0,0.00022612,2]
[313797732,1707729041488,-500.0,0.00022612,2]
[313797733,1707729041497,-6923.25,0.00022612,2]
[313797734,1707729041506,-925.86,0.00022612,2]
[313797735,1707729041515,-500.0,0.00022612,2]
[313797736,1707729041525,-3245.99,0.00022612,2]
[313797737,1707729041534,-597.15,0.00022612,2]
[313797738,1707729041543,-564.22,0.00022612,2]
[313797739,1707729041552,-2049.65,0.00022612,2]
[313797740,1707729041562,-2190.43,0.00022612,2]
[313797741,1707729041571,-500.0,0.00022612,2]
[313797742,1707729041580,-500.0,0.00022612,2]
[313797743,1707729041589,-500.0,0.00022612,2]
[313797744,1707729041598,-1541.23,0.00022612,2]
[313797745,1707729041608,-1412.43,0.00022612,2]
[313797746,1707729041617,-500.0,0.00022612,2]
[313797747,1707729041627,-500.0,0.00022612,2]
[313797748,1707729041636,-6912.18,0.00022612,2]
[313797749,1707729041645,-500.0,0.00022612,2]
[313797750,1707729041655,-726.33,0.00022612,2]
[313797751,1707729041665,-726.08,0.00022612,2]
[313797752,1707729041675,-500.0,0.00022612,2]
[313797753,1707729041685,-500.0,0.00022612,2]
[313797754,1707729041696,-500.0,0.00022612,2]
[313797755,1707729041706,-623.12,0.00022612,2]
[313797757,1707729041715,-500.0,0.00022612,2]
[313797759,1707729041725,-500.0,0.00022612,2]
[313797761,1707729041734,-500.0,0.00022612,2]
[313797763,1707729041743,-11481.88,0.00022612,2]
[313797765,1707729041753,-500.0,0.00022612,2]
[313797767,1707729041765,-500.0,0.00022612,2]
[313797768,1707729041775,-500.0,0.00022612,2]
[313797771,1707729041784,-500.0,0.00022612,2]
[313797773,1707729041794,-1479.34,0.00022612,2]
[313797775,1707729041803,-1620.87,0.00022612,2]
[313797777,1707729041813,-1739.84,0.00022612,2]
[313797779,1707729041822,-500.0,0.00022612,2]
[313797781,1707729041832,-2096.86,0.00022612,2]
[313797783,1707729042197,-500.0,0.00022612,2]
[313797784,1707729042210,-212.08818137,0.00022612,2]
[313797785,1707729042219,-1742.32,0.00022612,2]
[313797786,1707729042228,-500.0,0.00022612,2]
[313797787,1707729042237,-232.25501576,0.00022612,2]
[313797788,1707729042247,-2223.12,0.00022612,2]
[313797789,1707729042256,-2899.68,0.00022612,2]
[313797790,1707729042265,-500.0,0.00022612,2]
[313797791,1707729042274,-500.0,0.00022612,2]
[313797792,1707729042283,-500.0,0.00022612,2]
[313797793,1707729042292,-2380.4,0.00022612,2]
[313797794,1707729042301,-3387.12,0.00022612,2]
[313797795,1707729042310,-500.0,0.00022612,2]
[313797796,1707729042319,-500.0,0.00022612,2]
[313797797,1707729042328,-500.0,0.00022612,2]
[313797798,1707729042338,-3298.55,0.00022612,2]
[313797799,1707729042347,-500.0,0.00022612,2]
[313797800,1707729042356,-1980.5,0.00022612,2]
[313797801,1707729042365,-2864.76,0.00022612,2]
[313797802,1707729042374,-500.0,0.00022612,2]
[313797803,1707729042383,-1616.01,0.00022612,2]
[313797804,1707729042392,-500.0,0.00022612,2]
[313797805,1707729042401,-131.96408923,0.00022612,2]
[313797806,1707729042500,-368.03591077,0.00022612,2]
[313797807,1707729042509,-1050.96,0.00022612,2]
[313797808,1707729042518,-1060.26,0.00022612,2]
[313797809,1707729042527,-500.0,0.00022612,2]
[313797810,1707729042536,-1122.57,0.00022612,2]
[313797811,1707729042545,-1700.08,0.00022612,2]
[313797812,1707729042554,-500.0,0.00022612,2]
[313797813,1707729042563,-676.72,0.00022612,2]
[313797814,1707729042573,-5644.93,0.00022612,2]
[313797815,1707729042582,-869.71,0.00022612,2]
[313797816,1707729042591,-500.0,0.00022612,2]
[313797817,1707729042600,-500.0,0.00022612,2]
[313797818,1707729042609,-500.0,0.00022612,2]
[313797819,1707729042619,-4136.36,0.00022612,2]
[313797820,1707729042628,-500.0,0.00022612,2]
[313797821,1707729042638,-7106.82,0.00022612,2]
[313797822,1707729042647,-500.0,0.00022612,2]
[313797823,1707729042656,-204.65349978,0.00022613,2]
[313797824,1707729042666,-178.61376212,0.00022613,2]
[313797825,1707729042676,-264.12581306,0.00022613,2]
[313797826,1707729042685,-1207.4376444,0.00022613,2]
[313797827,1707729042696,-500.0,0.00022613,2]
[313797828,1707729042705,-500.0,0.00022613,2]
[313797829,1707729042715,-500.0,0.00022613,2]
[313797830,1707729042724,-500.0,0.00022613,2]
[313797831,1707729042734,-694.02,0.00022613,2]
[313797832,1707729042744,-500.0,0.00022613,2]
[313797833,1707729042754,-872.96,0.00022613,2]
[313797834,1707729042765,-500.0,0.00022613,2]
[313797835,1707729042775,-500.0,0.00022613,2]
[313797836,1707729042785,-500.0,0.00022613,2]
[313797837,1707729042794,-500.0,0.00022613,2]
[313797838,1707729042804,-968.67,0.00022613,2]
[313797839,1707729042814,-682.94,0.00022613,2]
[313797840,1707729042824,-500.0,0.00022613,2]
[313797841,1707729042834,-500.0,0.00022613,2]
[313797842,1707729042845,-500.0,0.00022613,2]
[313797843,1707729042855,-622.32,0.00022613,2]
[313797844,1707729042865,-500.0,0.00022613,2]
[313797845,1707729042874,-526.2716841,0.00022613,2]
[313797846,1707729042884,-536.26,0.00022613,2]
[313797847,1707729042893,-500.0,0.00022613,2]
[313797848,1707729042903,-500.0,0.00022613,2]
[313797849,1707729042912,-500.0,0.00022613,2]
[313797850,1707729042922,-500.0,0.00022613,2]
[313797851,1707729042932,-542.31,0.00022613,2]
[313797852,1707729042941,-500.0,0.00022613,2]
[313797854,1707729042951,-500.0,0.00022613,2]
[313797856,1707729042961,-354.30284465,0.00022613,2]
[313797857,1707729042970,-804.91,0.00022613,2]
[313797858,1707729042979,-591.5,0.00022613,2]
[313797859,1707729042988,-500.0,0.00022613,2]
[313797860,1707729042998,-1036.18,0.00022613,2]
[313797861,1707729043007,-500.0,0.00022613,2]
[313797862,1707729043016,-598.87,0.00022613,2]
[313797863,1707729043025,-559.26,0.00022613,2]
[313797864,1707729043034,-500.0,0.00022613,2]
[313797865,1707729043044,-500.0,0.00022613,2]
[313797866,1707729043053,-500.0,0.00022613,2]
[313797867,1707729043063,-500.0,0.00022613,2]
[313797868,1707729043073,-500.0,0.00022613,2]
[313797869,1707729043082,-500.0,0.00022613,2]
[313797870,1707729043091,-760.83,0.00022613,2]
[313797871,1707729043101,-683.46,0.00022613,2]
[313797872,1707729043110,-500.0,0.00022613,2]
[313797873,1707729043119,-649.09,0.00022613,2]
[313797874,1707729043128,-500.0,0.00022613,2]
[313797875,1707729043138,-1009.01,0.00022613,2]
[313797876,1707729043147,-500.0,0.00022613,2]
[313797877,1707729043156,-500.0,0.00022613,2]
[313797878,1707729043165,-532.5949996,0.00022613,2]
[313797879,1707729043174,-500.0,0.00022613,2]
[313797880,1707729043184,-500.0,0.00022613,2]
[313797881,1707729043195,-500.0,0.00022613,2]
[313797882,1707729043204,-822.95,0.00022613,2]
[313797883,1707729043213,-500.0,0.00022613,2]
[313797884,1707729043223,-500.0,0.00022613,2]
[313797885,1707729043232,-500.0,0.00022613,2]
[313797886,1707729043242,-952.13,0.00022613,2]
[313797887,1707729043251,-500.0,0.00022613,2]
[313797888,1707729043260,-500.0,0.00022613,2]
[313797889,1707729043270,-689.32,0.00022613,2]
[313797890,1707729043279,-556.33,0.00022613,2]
[313797891,1707729043289,-500.0,0.00022613,2]
[313797893,1707729043299,-543.74600886,0.00022613,2]
[313797895,1707729043308,-659.26,0.00022613,2]
[313797896,1707729043318,-500.0,0.00022613,2]
[313797897,1707729043327,-500.0,0.00022613,2]
[313797898,1707729043336,-563.16,0.00022613,2]
[313797899,1707729043345,-979.63,0.00022613,2]
[313797900,1707729043354,-500.0,0.00022613,2]
[313797901,1707729043364,-500.0,0.00022613,2]
[313797902,1707729043374,-500.0,0.00022613,2]
[313797903,1707729043383,-1028.24,0.00022613,2]
[313797904,1707729043392,-500.0,0.00022613,2]
[313797905,1707729043402,-546.83975775,0.00022613,2]
[313797906,1707729043412,-928.16,0.00022613,2]
[313797907,1707729043421,-500.0,0.00022613,2]
[313797908,1707729043431,-500.0,0.00022613,2]
[313797909,1707729043442,-853.63,0.00022613,2]
[313797910,1707729043451,-500.0,0.00022613,2]
[313797911,1707729043460,-905.03,0.00022613,2]
[313797912,1707729043470,-850.37,0.00022613,2]
[313797913,1707729043480,-500.0,0.00022613,2]
[313797914,1707729043489,-508.47,0.00022613,2]
[313797915,1707729043498,-500.0,0.00022613,2]
[313797916,1707729043507,-500.0,0.00022613,2]
[313797917,1707729043517,-543.88,0.00022613,2]
[313797918,1707729043526,-500.0,0.00022613,2]
[313797919,1707729043535,-781.43,0.00022613,2]
[313797920,1707729043545,-500.0,0.00022613,2]
[313797921,1707729043554,-500.0,0.00022613,2]
[313797922,1707729043563,-500.0,0.00022613,2]
[313797923,1707729043572,-500.0,0.00022613,2]
[313797924,1707729043582,-500.0,0.00022613,2]
[313797925,1707729043591,-500.0,0.00022613,2]
[313797926,1707729043600,-500.0,0.00022613,2]
[313797927,1707729043609,-727.92,0.00022613,2]
[313797928,1707729043619,-500.0,0.00022613,2]
[313797929,1707729043628,-500.0,0.00022613,2]
[313797930,1707729043637,-683.67,0.00022613,2]
[313797931,1707729043647,-500.0,0.00022613,2]
[313797932,1707729043656,-2118.39,0.00022613,2]
[313797933,1707729043666,-500.0,0.00022613,2]
[313797934,1707729043675,-500.0,0.00022613,2]
[313797935,1707729043685,-500.0,0.00022613,2]
[313797936,1707729043695,-500.0,0.00022613,2]
[313797937,1707729043704,-500.0,0.00022613,2]
[313797938,1707729043713,-500.0,0.00022613,2]
[313797939,1707729043723,-500.0,0.00022613,2]
[313797940,1707729043732,-500.0,0.00022613,2]
[313797941,1707729043741,-1246.5,0.00022613,2]
[313797942,1707729043753,-924.23,0.00022613,2]
[313797943,1707729043764,-519.06,0.00022613,2]
[313797944,1707729043774,-623.58,0.00022613,2]
[313797945,1707729043784,-1066.94,0.00022613,2]
[313797946,1707729043794,-500.0,0.00022613,2]
[313797947,1707729043804,-1134.34,0.00022613,2]
[313797948,1707729043813,-720.55,0.00022613,2]
[313797949,1707729043823,-949.65,0.00022613,2]
[313797950,1707729043832,-590.16,0.00022613,2]
[313797951,1707729043843,-500.0,0.00022613,2]
[313797952,1707729043852,-567.57,0.00022613,2]
[313797953,1707729043861,-851.63,0.00022613,2]
[313797954,1707729043871,-500.0,0.00022613,2]
[313797955,1707729043881,-500.0,0.00022613,2]
[313797956,1707729043890,-500.0,0.00022613,2]
[313797957,1707729043899,-500.0,0.00022613,2]
[313797958,1707729043909,-1421.06,0.00022613,2]
[313797959,1707729043918,-927.01,0.00022613,2]
[313797960,1707729043928,-500.0,0.00022613,2]
[313797961,1707729043937,-917.07,0.00022613,2]
[313797962,1707729043947,-500.0,0.00022613,2]
[313797963,1707729043957,-500.0,0.00022613,2]
[313797964,1707729043966,-644.69,0.00022613,2]
[313797965,1707729043975,-500.0,0.00022613,2]
[313797966,1707729043985,-500.0,0.00022613,2]
[313797967,1707729043994,-500.0,0.00022613,2]
[313797968,1707729044003,-500.0,0.00022613,2]
[313797969,1707729044012,-750.8,0.00022613,2]
[313797970,1707729044022,-500.0,0.00022613,2]
[313797971,1707729044031,-508.64,0.00022613,2]
[313797972,1707729044040,-500.0,0.00022613,2]
[313797973,1707729044049,-500.0,0.00022613,2]
[313797974,1707729044058,-1332.38,0.00022613,2]
[313797975,1707729044068,-500.0,0.00022613,2]
[313797976,1707729044077,-500.0,0.00022613,2]
[313797977,1707729044086,-904.95,0.00022613,2]
[313797978,1707729044095,-500.0,0.00022613,2]
[313797979,1707729044104,-934.01,0.00022613,2]
[313797980,1707729044113,-854.84,0.00022613,2]
[313797981,1707729044122,-575.38,0.00022613,2]
[313797982,1707729044131,-1214.89,0.00022613,2]
[313797983,1707729044140,-976.8,0.00022613,2]
[313797984,1707729044149,-500.0,0.00022613,2]
[313797985,1707729044158,-500.0,0.00022613,2]
[313797986,1707729044167,-944.05,0.00022613,2]
[313797987,1707729044177,-500.0,0.00022613,2]
[313797988,1707729044186,-922.11,0.00022613,2]
[313797989,1707729044197,-500.0,0.00022613,2]
[313797990,1707729044206,-546.47,0.00022613,2]
[313797991,1707729044215,-500.0,0.00022613,2]
[313797992,1707729044224,-612.18804648,0.00022613,2]
[313797993,1707729044233,-500.0,0.00022613,2]
[313797994,1707729044243,-8204.9,0.00022613,2]
[313797995,1707729044252,-500.0,0.00022613,2]
[313797996,1707729044261,-500.0,0.00022613,2]
[313797997,1707729044270,-500.0,0.00022613,2]
[313797998,1707729044279,-500.0,0.00022613,2]
[313797999,1707729044288,-1277.92,0.00022613,2]
[313798000,1707729044297,-500.0,0.00022613,2]
[313798001,1707729044306,-500.0,0.00022613,2]
[313798002,1707729044315,-500.0,0.00022613,2]
[313798003,1707729044325,-500.0,0.00022613,2]
[313798004,1707729044334,-500.0,0.00022613,2]
[313798005,1707729044343,-500.0,0.00022613,2]
[313798006,1707729044352,-3626.97,0.00022613,2]
[313798007,1707729044361,-500.0,0.00022613,2]
[313798008,1707729044369,-1106.44,0.00022613,2]
[313798009,1707729044379,-500.0,0.00022613,2]
[313798010,1707729044387,-500.0,0.00022613,2]
[313798011,1707729044396,-500.0,0.00022613,2]
[313798012,1707729044405,-500.0,0.00022613,2]
[313798013,1707729044414,-500.0,0.00022613,2]
[313798014,1707729044423,-1547.48,0.00022613,2]
[313798015,1707729044432,-375.29514465,0.00022613,2]
[313798016,1707729044443,-824.69,0.00022613,2]
[313798017,1707729044452,-1367.23,0.00022613,2]
[313798018,1707729044461,-713.23,0.00022613,2]
[313798019,1707729044470,-500.0,0.00022613,2]
[313798020,1707729044479,-500.0,0.00022613,2]
[313798021,1707729044488,-500.0,0.00022613,2]
[313798022,1707729044497,-532.71146932,0.00022613,2]
[313798023,1707729044506,-500.0,0.00022613,2]
[313798024,1707729044515,-531.26,0.00022613,2]
[313798025,1707729044525,-500.0,0.00022613,2]
[313798026,1707729044534,-416.3467053,0.00022613,2]
[313798027,1707729044543,-625.35,0.00022613,2]
[313798028,1707729044552,-500.0,0.00022613,2]
[313798029,1707729044561,-3177.42,0.00022613,2]
[313798030,1707729044570,-4155.96,0.00022613,2]
[313798031,1707729044579,-500.0,0.00022613,2]
[313798032,1707729044588,-500.0,0.00022613,2]
[313798033,1707729044597,-500.0,0.00022613,2]
[313798034,1707729044606,-500.0,0.00022613,2]
[313798035,1707729044615,-500.0,0.00022613,2]
[313798036,1707729044624,-500.0,0.00022613,2]
[313798037,1707729044634,-500.0,0.00022613,2]
[313798038,1707729044643,-500.0,0.00022613,2]
[313798039,1707729044652,-500.0,0.00022613,2]
[313798040,1707729044662,-500.0,0.00022613,2]
[313798041,1707729044671,-500.0,0.00022613,2]
[313798042,1707729044680,-577.29,0.00022613,2]
[313798043,1707729044690,-500.0,0.00022613,2]